bitfinex/quotes_BTCUSD_20220204
["timestamp","ask_amount","ask_price","bid_price","bid_amount"]
[1643976430638,0.53137217,37930.0,37928.0,0.22643362]
[1643976430841,0.53137217,37930.0,37929.0,0.22216362]
[1643976431037,0.28383549,37930.0,37929.0,0.22216362]
[1643976431640,0.05,37930.0,37929.0,0.22216362]
[1643976431839,0.065916,37931.0,37929.0,0.27216361]
[1643976432039,0.25236543,37930.0,37929.0,0.22216362]
[1643976432239,0.30236543,37930.0,37929.0,0.22216362]
[1643976432692,0.53126664,37930.0,37929.0,0.22216362]
[1643976432888,0.87809964,37930.0,37925.0,0.0010172]
[1643976433101,0.87809964,37930.0,37920.0,0.18182753]
[1643976433102,0.30959578,37927.0,37920.0,0.05]
[1643976433290,0.30959578,37927.0,37919.0,0.23304204]
[1643976433291,1.81665422,37926.0,37925.0,0.00051273]
[1643976433692,1.96665422,37926.0,37925.0,0.00051273]
[1643976434190,1.96665422,37926.0,37914.0,0.00018594]
[1643976434191,0.19912202,37917.0,37914.0,0.00018594]
[1643976434395,0.19912202,37917.0,37911.0,0.00018594]
[1643976434396,0.131895,37917.0,37911.0,0.00018594]
[1643976434591,0.181895,37917.0,37910.0,0.73575599]
[1643976434791,0.181895,37917.0,37910.0,0.78557004]
[1643976434992,0.115946,37917.0,37910.0,0.78557004]
[1643976435191,0.115946,37917.0,37912.0,0.04999999]
[1643976435392,0.115946,37917.0,37910.0,0.73557005]
[1643976435393,0.21817007,37915.0,37910.0,0.73557005]
[1643976435592,0.30006682,37914.0,37910.0,0.73557005]
[1643976435793,0.30006682,37914.0,37910.0,0.73057005]
[1643976436193,0.346833,37913.0,37910.0,0.73075599]
[1643976436444,0.31344037,37914.0,37910.0,0.73075599]
[1643976436644,0.412782,37913.0,37910.0,0.73075599]
[1643976436846,0.412782,37913.0,37910.0,0.73108107]
[1643976436847,0.796833,37911.0,37910.0,0.73108107]
[1643976437045,0.35085608,37911.0,37910.0,0.73108107]
[1643976437945,0.69768908,37911.0,37910.0,0.73057005]
[1643976440295,0.69768908,37911.0,37910.0,0.78057004]
[1643976440296,0.346833,37911.0,37910.0,0.78057004]
[1643976440497,0.1236,37919.0,37910.0,0.78057004]
[1643976440697,0.346833,37918.0,37916.0,0.04999999]
[1643976440894,0.346833,37918.0,37917.0,0.04999999]
[1643976441097,0.12811888,37918.0,37917.0,0.04999999]
[1643976441295,0.12811888,37918.0,37913.0,0.04999999]
[1643976441496,0.23424989,37922.0,37917.0,0.09005265]
[1643976441897,0.48441195,37924.0,37921.0,0.04999999]
[1643976441898,0.065927,37924.0,37921.0,0.04999999]
[1643976442095,0.346884,37923.0,37921.0,0.04999999]
[1643976442295,0.065927,37924.0,37918.0,0.34706994]
[1643976442494,0.065927,37924.0,37917.0,0.09023859]
[1643976442694,0.065927,37924.0,37920.0,0.04999999]
[1643976442894,0.065927,37924.0,37919.0,0.00101564]
[1643976442895,0.21474712,37920.0,37919.0,0.00101564]
[1643976443940,0.21474712,37920.0,37916.0,0.04999999]
[1643976444238,0.05,37921.0,37918.0,0.00101566]
[1643976444439,0.065935,37919.0,37918.0,0.00101566]
[1643976445037,0.065935,37919.0,37917.0,0.00018594]
[1643976445239,0.065935,37919.0,37917.0,0.00101567]
[1643976445640,0.065935,37919.0,37918.0,0.346884]
[1643976446040,0.065935,37919.0,37917.0,0.00120161]
[1643976446243,0.065935,37919.0,37916.0,0.00018594]
[1643976446441,0.065935,37919.0,37917.0,0.346884]
[1643976447240,0.065935,37919.0,37918.0,0.04999999]
[1643976447440,0.065935,37919.0,37918.0,0.39688399]
[1643976447909,0.065935,37919.0,37918.0,0.346884]
[1643976448509,0.065935,37919.0,37917.0,0.00120161]
[1643976448712,0.065935,37919.0,37916.0,0.00018594]
[1643976448713,0.115935,37919.0,37916.0,0.00018594]
[1643976448915,0.115935,37919.0,37917.0,0.00101567]
[1643976449713,0.065935,37919.0,37917.0,0.00101567]
[1643976449912,0.35860965,37919.0,37916.0,0.00018594]
[1643976450114,0.2922632,37918.0,37916.0,0.00101568]
[1643976450313,0.2922632,37918.0,37916.0,0.00120162]
[1643976450517,0.2922632,37918.0,37916.0,0.00101568]
[1643976451114,0.065935,37919.0,37916.0,0.00101568]
[1643976451115,0.065935,37919.0,37916.0,0.346884]
[1643976451465,0.065935,37919.0,37916.0,0.00018594]
[1643976451659,0.115935,37919.0,37915.0,0.05120162]
[1643976451861,0.065935,37919.0,37917.0,0.04999999]
[1643976452061,0.05,37922.0,37916.0,0.00018594]
[1643976452260,0.05,37922.0,37919.0,0.04999999]
[1643976452261,0.346884,37920.0,37919.0,0.04999999]
[1643976452459,0.1,37922.0,37919.0,0.04999999]
[1643976452460,0.1,37922.0,37919.0,0.39688399]
[1643976452760,0.05,37922.0,37917.0,1.72593324]
[1643976452960,0.24810269,37919.0,37917.0,0.00101566]
[1643976453160,0.24810269,37919.0,37918.0,0.34705691]
[1643976453359,0.24810269,37919.0,37917.0,0.00101566]
[1643976453560,0.29784855,37918.0,37916.0,0.346863]
[1643976453760,0.24810269,37919.0,37917.0,0.00101567]
[1643976454559,0.29404772,37918.0,37917.0,0.00101567]
[1643976454761,0.24810269,37919.0,37916.0,0.00019391]
[1643976454960,0.29810269,37919.0,37916.0,0.00101568]
[1643976455191,0.29810269,37919.0,37916.0,0.00120959]
[1643976455989,0.29810269,37919.0,37916.0,0.00019391]
[1643976456189,0.29810269,37919.0,37916.0,0.00101568]
[1643976456389,0.29810269,37919.0,37916.0,0.00120959]
[1643976456793,0.24810269,37919.0,37916.0,0.00120959]
[1643976457191,0.29810269,37919.0,37916.0,0.00019391]
[1643976457391,0.29810269,37919.0,37916.0,0.00101568]
[1643976457591,0.29810269,37919.0,37916.0,0.00120959]
[1643976457992,0.065937,37921.0,37916.0,0.00120959]
[1643976458195,0.065937,37921.0,37917.0,0.346863]
[1643976458393,0.065937,37921.0,37917.0,0.34705691]
[1643976458592,0.34446021,37923.0,37917.0,0.00101567]
[1643976458593,0.41038821,37923.0,37917.0,0.00101567]
[1643976458794,0.46038821,37923.0,37917.0,0.00120958]
[1643976459039,0.46038821,37923.0,37920.0,0.10359971]
[1643976459240,0.346863,37922.0,37920.0,0.10359971]
[1643976460041,0.346863,37922.0,37919.0,0.00120955]
[1643976460342,0.346863,37922.0,37919.0,0.00101564]
[1643976460741,0.346863,37922.0,37917.0,0.00019391]
[1643976460941,0.346863,37922.0,37919.0,0.00101564]
[1643976461140,0.346863,37921.0,37919.0,0.10278639]
[1643976461341,0.396863,37921.0,37919.0,0.10278639]
[1643976461540,0.05,37921.0,37919.0,0.10278639]
[1643976461742,0.4077643,37923.0,37919.0,0.10278639]
[1643976461943,0.4077643,37923.0,37919.0,0.10177075]
[1643976462141,0.346863,37921.0,37919.0,0.10177075]
[1643976462441,0.346863,37921.0,37919.0,0.10196466]
[1643976462699,0.346863,37921.0,37919.0,0.10177075]
[1643976463493,0.4077643,37923.0,37919.0,0.10177075]
[1643976463695,0.4077643,37923.0,37919.0,0.10196466]
[1643976463893,0.05,37922.0,37919.0,0.10196466]
[1643976464496,0.05,37922.0,37919.0,0.10297984]
[1643976464700,0.05,37922.0,37919.0,0.10278593]
[1643976465495,0.4077643,37923.0,37919.0,0.15177074]
[1643976465496,0.065928,37923.0,37919.0,0.15177074]
[1643976465700,0.5982,37929.0,37922.0,0.04999999]
[1643976465701,0.065923,37925.0,37922.0,0.04999999]
[1643976465898,0.065923,37925.0,37920.0,0.51825374]
[1643976465899,0.00101493,37928.0,37924.0,0.04999999]
[1643976466097,0.346863,37927.0,37925.0,0.29932505]
[1643976466296,0.00101493,37928.0,37926.0,0.346863]
[1643976466556,0.00101493,37928.0,37927.0,0.10406768]
[1643976466955,0.34787799,37929.0,37927.0,0.10406768]
[1643976467558,0.34787799,37929.0,37927.0,0.15406767]
[1643976467757,0.34787799,37929.0,37927.0,0.10406768]
[1643976467957,0.396863,37929.0,37928.0,0.04999999]
[1643976468257,0.346863,37928.0,37927.0,0.10406768]
[1643976469457,0.346863,37928.0,37927.0,0.15406767]
[1643976469660,0.346863,37928.0,37927.0,0.10406768]
[1643976470494,0.346863,37928.0,37927.0,0.15406767]
[1643976470697,0.00101499,37929.0,37928.0,0.0602006]
[1643976470893,0.00101499,37929.0,37928.0,0.76633686]
[1643976471694,0.24005747,37935.0,37928.0,0.76633686]
[1643976471896,0.28970472,37935.0,37934.0,0.04999999]
[1643976472096,0.51312175,37935.0,37932.0,0.09543219]
[1643976472401,0.346863,37934.0,37932.0,0.09543219]
[1643976473942,0.05035275,37935.0,37932.0,0.09543219]
[1643976474141,0.05101339,37935.0,37932.0,0.09543219]
[1643976474543,0.11691939,37935.0,37929.0,0.36149596]
[1643976474742,0.11691939,37935.0,37930.0,0.346863]
[1643976474743,0.11727214,37935.0,37930.0,0.346863]
[1643976474946,0.05136614,37935.0,37930.0,0.346863]
[1643976475144,0.05035275,37935.0,37930.0,0.346863]
[1643976475444,0.0010134,37934.0,37930.0,0.346863]
[1643976476043,0.0010134,37934.0,37927.0,0.32889013]
[1643976476245,0.0010134,37934.0,37931.0,0.08098444]
[1643976476446,0.346863,37933.0,37931.0,0.08098444]
[1643976476643,0.00101342,37932.0,37931.0,0.08098444]
[1643976477346,0.00101342,37932.0,37931.0,0.42784744]
[1643976477805,0.00035275,37937.0,37931.0,0.08098444]
[1643976478009,0.346863,37937.0,37931.0,0.08098444]
[1643976478200,0.2571413,37936.0,37931.0,0.08098444]
[1643976478399,0.25749405,37936.0,37931.0,0.08098444]
[1643976478599,0.25749405,37936.0,37932.0,1.83527988]
[1643976478600,0.2571413,37936.0,37932.0,1.83527988]
[1643976478801,0.346863,37935.0,37932.0,1.83527988]
[1643976479001,0.346863,37935.0,37929.0,0.1525]
[1643976479304,0.34721575,37935.0,37930.0,0.29042986]
[1643976479506,0.34721575,37935.0,37927.0,0.39435925]
[1643976479803,0.34721575,37935.0,37927.0,0.29435925]
[1643976480105,0.00035275,37935.0,37927.0,0.29435925]
[1643976480301,0.3071413,37936.0,37927.0,0.29435925]
[1643976480302,0.00101522,37933.0,37928.0,0.10033609]
[1643976481303,0.065906,37934.0,37928.0,0.10033609]
[1643976481304,0.06334268,37934.0,37928.0,0.10033609]
[1643976481542,0.00101523,37932.0,37928.0,0.10033609]
[1643976481741,0.00101523,37932.0,37929.0,0.346863]
[1643976482543,0.06334268,37934.0,37929.0,0.346863]
[1643976482746,0.06334268,37934.0,37928.0,0.10033609]
[1643976484645,0.06334268,37934.0,37932.0,0.00101523]
[1643976484846,0.41020568,37934.0,37932.0,0.00101523]
[1643976485045,0.06334268,37934.0,37932.0,0.00101523]
[1643976485301,0.346863,37933.0,37932.0,0.00101523]
[1643976487903,0.00101595,37935.0,37932.0,0.00101523]
[1643976488499,0.346863,37935.0,37932.0,0.00101523]
[1643976488702,0.34787895,37935.0,37932.0,0.00101523]
[1643976489644,0.05,37933.0,37932.0,0.00101523]
[1643976489844,0.396863,37933.0,37932.0,0.00101523]
[1643976490245,0.00101595,37935.0,37932.0,0.00101523]
[1643976490246,0.34787895,37935.0,37932.0,0.00101523]
[1643976490845,0.346863,37935.0,37932.0,0.00101523]
[1643976491146,0.34787895,37935.0,37932.0,0.00101523]
[1643976492150,0.346863,37935.0,37932.0,0.00101523]
[1643976492348,0.05,37933.0,37932.0,0.00101523]
[1643976492548,0.00101595,37935.0,37932.0,0.00101523]
[1643976492792,0.346863,37934.0,37932.0,0.00101523]
[1643976492995,0.26306037,37935.0,37932.0,0.00101523]
[1643976493196,0.26204442,37935.0,37932.0,0.00101523]
[1643976493493,0.26306037,37935.0,37932.0,0.00101523]
[1643976493692,0.05,37933.0,37932.0,0.00101523]
[1643976494495,0.396863,37933.0,37932.0,0.00101523]
[1643976494795,0.2608574,37933.0,37932.0,0.00101523]
[1643976496541,0.00101595,37935.0,37932.0,0.00101523]
[1643976496741,0.346863,37934.0,37932.0,0.00101523]
[1643976497542,0.45,37933.0,37932.0,0.00101523]
[1643976497744,0.796863,37933.0,37932.0,0.00101523]
[1643976498642,0.396863,37933.0,37932.0,0.00101523]
[1643976499445,0.05,37933.0,37932.0,0.00101523]
[1643976503699,0.05,37934.0,37932.0,0.00101523]
[1643976504548,0.04970724,37934.0,37932.0,0.00101523]
[1643976504751,0.00101595,37935.0,37932.0,0.00101523]
[1643976504951,0.39657024,37934.0,37932.0,0.00101523]
[1643976505353,0.04970724,37934.0,37932.0,0.00101523]
[1643976505552,0.04882984,37934.0,37932.0,0.00101523]
[1643976505958,0.00101595,37935.0,37933.0,0.00117016]
[1643976506154,0.04882984,37934.0,37933.0,0.00117016]
[1643976506854,0.04882984,37934.0,37933.0,0.346863]
[1643976507054,0.04882984,37934.0,37932.0,0.00101523]
[1643976508498,0.346863,37933.0,37932.0,0.00101523]
[1643976509294,0.04882984,37934.0,37932.0,0.00101523]
[1643976510298,0.346863,37933.0,37932.0,0.00101523]
[1643976513544,0.30522732,37933.0,37932.0,0.00101523]
[1643976513746,0.04882984,37934.0,37932.0,0.00101523]
[1643976515397,0.04882984,37934.0,37927.0,0.00101616]
[1643976515398,1.6436689,37931.0,37927.0,0.00101616]
[1643976515595,0.59882984,37928.0,37927.0,0.00101616]
[1643976515794,0.04882984,37928.0,37927.0,0.00101616]
[1643976515996,0.6883844,37928.0,37922.0,0.33964066]
[1643976516194,0.04882984,37923.0,37921.0,0.33964066]
[1643976516398,0.11476384,37923.0,37921.0,0.33983457]
[1643976516594,0.11476384,37923.0,37921.0,0.33964066]
[1643976517395,0.11476384,37923.0,37920.0,0.00121011]
[1643976517693,0.04882984,37922.0,37920.0,0.0010162]
[1643976517893,0.04882984,37922.0,37920.0,0.00121011]
[1643976518093,0.04882984,37922.0,37920.0,0.0010162]
[1643976518595,0.04882984,37922.0,37919.0,0.36091224]
[1643976518946,0.04882984,37922.0,37919.0,0.00101622]
[1643976519144,0.04882984,37920.0,37919.0,0.00121013]
[1643976519445,0.065926,37926.0,37919.0,0.34898338]
[1643976519646,0.3144017,37929.0,37924.0,0.00117016]
[1643976519846,0.04882984,37926.0,37922.0,0.3397587]
[1643976520046,0.04882984,37926.0,37924.0,0.00117016]
[1643976520246,0.04882984,37926.0,37925.0,0.346797]
[1643976520447,0.04882984,37926.0,37925.0,0.43216707]
[1643976520746,0.04882984,37926.0,37925.0,0.346797]
[1643976521147,0.04882984,37926.0,37925.0,0.34796716]
[1643976521746,0.04882984,37926.0,37925.0,0.346797]
[1643976521948,0.04882984,37926.0,37925.0,0.34796716]
[1643976522150,0.39562684,37926.0,37925.0,0.00117016]
[1643976522350,0.39562684,37926.0,37924.0,0.00101616]
[1643976523095,0.73862671,37925.0,37924.0,0.00101616]
[1643976523298,1.14997871,37925.0,37921.0,0.01981626]
[1643976523599,0.412727,37924.0,37923.0,0.00101616]
[1643976523797,0.7181126,37924.0,37923.0,0.00101616]
[1643976523998,0.76694244,37924.0,37923.0,0.00101616]
[1643976524499,0.76694244,37924.0,37921.0,0.01981626]
[1643976524800,0.70087631,37924.0,37922.0,0.00101618]
[1643976524999,0.04882984,37923.0,37922.0,0.00101618]
[1643976525701,0.04882984,37923.0,37920.0,0.07838629]
[1643976525899,0.04882984,37923.0,37921.0,0.0010162]
[1643976526850,0.04882984,37923.0,37920.0,0.07838629]
[1643976527046,0.2573089,37925.0,37921.0,0.346797]
[1643976527346,0.04882984,37922.0,37921.0,0.346797]
[1643976528047,0.24281926,37924.0,37921.0,0.346797]
[1643976528248,0.04882984,37922.0,37920.0,0.07920859]
[1643976528546,0.24281926,37924.0,37921.0,0.346797]
[1643976528749,0.04882984,37922.0,37920.0,0.07920859]
[1643976528949,0.24281926,37924.0,37921.0,0.346797]
[1643976529146,0.04882984,37922.0,37921.0,0.346797]
[1643976529550,0.04882984,37922.0,37921.0,0.3478132]
[1643976529747,0.36419679,37929.0,37921.0,0.3478132]
[1643976529948,0.36419679,37929.0,37921.0,0.0010162]
[1643976530223,0.04882984,37922.0,37921.0,0.0010162]
[1643976530416,0.04882984,37922.0,37921.0,0.346797]
[1643976531017,0.04882984,37922.0,37920.0,0.07920859]
[1643976531219,0.04882984,37922.0,37920.0,0.42600559]
[1643976531518,0.04882984,37921.0,37920.0,0.42600559]
[1643976531719,0.04882984,37921.0,37920.0,0.42498938]
[1643976532520,0.3699658,37927.0,37920.0,0.42498938]
[1643976532820,0.04882984,37925.0,37920.0,0.07838629]
[1643976533020,0.04882984,37921.0,37920.0,0.07819238]
[1643976533219,0.04882984,37921.0,37920.0,0.42498938]
[1643976533721,0.0428331,37921.0,37920.0,0.42498938]
[1643976533941,0.115921,37927.0,37920.0,0.42498938]
[1643976534141,0.30617119,37927.0,37920.0,0.07819238]
[1643976534344,0.0428331,37921.0,37919.0,0.06712813]
[1643976534544,0.0428331,37921.0,37920.0,0.50765004]
[1643976534748,0.1,37929.0,37920.0,0.50765004]
[1643976534944,0.0428331,37921.0,37920.0,0.16085304]
[1643976535143,0.0428331,37921.0,37920.0,0.50784395]
[1643976535342,0.19847264,37928.0,37920.0,0.50765004]
[1643976535543,0.0428331,37921.0,37920.0,0.16104695]
[1643976535744,0.05,37927.0,37920.0,0.44173304]
[1643976535945,0.0428331,37921.0,37920.0,0.36291113]
[1643976536144,0.0428331,37921.0,37920.0,0.44173304]
[1643976538196,0.19950884,37925.0,37920.0,0.44173304]
[1643976538493,0.19950884,37925.0,37920.0,0.44192695]
[1643976538494,0.0428331,37921.0,37920.0,0.44192695]
[1643976538695,0.0428331,37921.0,37920.0,0.44173304]
[1643976540000,0.0428331,37921.0,37919.0,0.00121013]
[1643976540201,0.0428331,37921.0,37918.0,0.02169536]
[1643976540398,0.20481556,37920.0,37919.0,0.00101622]
[1643976540603,1.54444566,37920.0,37919.0,0.00101622]
[1643976540796,1.59444566,37920.0,37919.0,0.00101622]
[1643976540996,0.64444566,37920.0,37919.0,0.00101622]
[1643976541446,0.4396301,37920.0,37918.0,0.08732729]
[1643976541646,0.0428331,37920.0,37919.0,0.346797]
[1643976543845,0.0428331,37920.0,37919.0,0.3539639]
[1643976544646,0.0428331,37920.0,37919.0,0.346797]
[1643976547301,0.06592,37927.0,37920.0,0.5]
[1643976547603,0.3968,37934.0,37920.0,0.5]
[1643976547604,0.346797,37929.0,37926.0,0.05]
[1643976547905,0.3968,37934.0,37926.0,0.05]
[1643976548097,0.3968,37934.0,37927.0,0.346797]
[1643976548299,0.26229433,37935.0,37928.0,0.346797]
[1643976548499,0.346797,37934.0,37929.0,0.05]
[1643976548699,0.00101547,37935.0,37929.0,0.05]
[1643976549345,0.00101547,37935.0,37930.0,0.05]
[1643976549545,0.00101547,37935.0,37929.0,0.31348755]
[1643976549745,0.00035275,37936.0,37930.0,0.05]
[1643976549950,0.00035275,37936.0,37934.0,0.09321757]
[1643976549951,0.0010155,37935.0,37934.0,0.09321757]
[1643976550247,0.3464395,37935.0,37934.0,0.09321757]
[1643976550647,0.0010155,37935.0,37934.0,0.09321757]
[1643976550846,0.3478125,37935.0,37934.0,0.09321757]
[1643976551046,0.346797,37935.0,37934.0,0.09321757]
[1643976552249,0.345424,37936.0,37934.0,0.09321757]
[1643976552449,0.34643948,37936.0,37934.0,0.09321757]
[1643976552708,0.34643948,37936.0,37929.0,0.37767275]
[1643976552898,0.34643948,37936.0,37927.0,0.10351573]
[1643976553101,0.00101548,37936.0,37927.0,0.4977992]
[1643976553299,0.00035275,37937.0,37927.0,0.34678347]
[1643976553501,0.00101548,37935.0,37927.0,0.34779916]
[1643976553899,0.00101548,37935.0,37932.0,0.05]
[1643976554098,0.346797,37934.0,37932.0,0.05]
[1643976554698,0.05,37934.0,37932.0,0.05]
[1643976555099,0.0010155,37935.0,37932.0,0.05]
[1643976555299,0.346797,37934.0,37932.0,0.05]
[1643976555500,0.346797,37934.0,37933.0,0.0958456]
[1643976555702,0.396797,37934.0,37933.0,0.0958456]
[1643976555900,0.395424,37934.0,37933.0,0.0958456]
[1643976556100,0.396797,37934.0,37933.0,0.0958456]
[1643976557148,0.05,37934.0,37933.0,0.0958456]
[1643976557451,0.346797,37934.0,37933.0,0.0958456]
[1643976557649,0.396797,37934.0,37933.0,0.0958456]
[1643976557849,0.346797,37934.0,37933.0,0.0958456]
[1643976558252,0.0010155,37935.0,37933.0,0.0958456]
[1643976558253,0.345424,37936.0,37933.0,0.0958456]
[1643976558451,0.0010155,37935.0,37933.0,0.0958456]
[1643976558650,0.346797,37934.0,37933.0,0.0958456]
[1643976558852,0.346797,37934.0,37933.0,0.1458456]
[1643976559651,0.0010155,37935.0,37933.0,0.1458456]
[1643976559852,0.346797,37934.0,37933.0,0.1458456]
[1643976560296,0.346797,37934.0,37933.0,0.0958456]
[1643976560698,0.00035275,37937.0,37933.0,0.1458456]
[1643976561001,0.3464395,37935.0,37933.0,0.0958456]
[1643976561200,0.3464395,37935.0,37930.0,0.0659]
[1643976561201,0.0010155,37935.0,37930.0,0.05]
[1643976561397,0.0010155,37935.0,37929.0,0.28720796]
[1643976561797,0.00035275,37937.0,37931.0,0.05]
[1643976561999,0.00101549,37935.0,37931.0,0.05]
[1643976562199,0.00101549,37935.0,37932.0,0.07936179]
[1643976562401,0.346797,37934.0,37932.0,0.07936179]
[1643976562598,0.61359202,37934.0,37932.0,0.07936179]
[1643976564046,0.26679502,37934.0,37929.0,0.346797]
[1643976564642,0.26179502,37934.0,37929.0,0.346797]
[1643976565243,0.26179502,37934.0,37931.0,0.07771038]
[1643976565843,0.346797,37934.0,37933.0,0.05]
[1643976566245,0.346797,37934.0,37931.0,0.12771038]
[1643976566443,0.00101548,37935.0,37933.0,0.05]
[1643976566644,0.346797,37934.0,37933.0,0.05]
[1643976567044,0.346797,37934.0,37932.0,0.05]
[1643976567244,0.346797,37934.0,37931.0,0.07771038]
[1643976567709,0.346797,37934.0,37931.0,0.12771038]
[1643976568299,0.346797,37934.0,37931.0,0.07771038]
[1643976568501,0.346797,37934.0,37931.0,0.07225738]
[1643976569701,0.346797,37934.0,37933.0,0.05]
[1643976570303,0.0010155,37935.0,37933.0,0.05]
[1643976570502,0.346797,37934.0,37931.0,0.07225738]
[1643976570703,0.0010155,37935.0,37932.0,0.396797]
[1643976570903,0.0010155,37935.0,37932.0,0.05]
[1643976571104,0.0010155,37935.0,37931.0,0.07225738]
[1643976571303,0.00035275,37937.0,37931.0,0.07225738]
[1643976571550,0.0010155,37935.0,37931.0,0.07225738]
[1643976571947,0.0010155,37935.0,37933.0,0.05]
[1643976572148,0.346797,37934.0,37933.0,0.05]
[1643976572750,0.0010155,37935.0,37933.0,0.05]
[1643976572952,0.346797,37934.0,37933.0,0.05]
[1643976573750,0.345424,37935.0,37933.0,0.05]
[1643976573950,0.3464395,37935.0,37933.0,0.05]
[1643976574751,0.3464395,37935.0,37931.0,0.12225738]
[1643976574950,0.345424,37935.0,37933.0,0.05]
[1643976576198,0.345424,37935.0,37934.0,0.34327389]
[1643976576403,0.00035275,37937.0,37933.0,0.1025]
[1643976576601,0.001,37938.0,37936.0,0.05]
[1643976576602,0.00135275,37938.0,37936.0,0.05]
[1643976576803,0.346797,37937.0,37935.0,0.00800869]
[1643976577201,0.00135275,37938.0,37936.0,0.44537658]
[1643976577400,0.001,37938.0,37936.0,0.44537658]
[1643976577602,0.002015,37938.0,37936.0,0.44537658]
[1643976577802,0.346797,37937.0,37936.0,0.09857958]
[1643976578604,0.346797,37937.0,37934.0,0.2950289]
[1643976580053,0.34781201,37937.0,37935.0,0.09784803]
[1643976580256,0.39781201,37937.0,37935.0,0.09784803]
[1643976580454,0.345424,37936.0,37935.0,0.09784803]
[1643976580655,0.345424,37936.0,37935.0,0.09584803]
[1643976582059,0.18133139,37934.0,37933.0,0.53324536]
[1643976582257,0.00101501,37937.0,37933.0,0.13394836]
[1643976582258,0.00035275,37937.0,37933.0,0.13394836]
[1643976582456,0.00035275,37937.0,37933.0,0.05]
[1643976582457,0.346797,37936.0,37933.0,0.05]
[1643976583700,0.34781202,37936.0,37933.0,0.05]
[1643976584000,0.26466415,37932.0,37925.0,0.19909933]
[1643976584200,0.6297859,37936.0,37926.0,0.399297]
[1643976584201,0.00101502,37936.0,37926.0,0.399297]
[1643976584399,0.00101502,37936.0,37926.0,0.58703769]
[1643976584400,0.05,37934.0,37926.0,0.58703769]
[1643976584604,0.05,37934.0,37929.0,0.13178383]
[1643976584800,0.05,37934.0,37930.0,0.346797]
[1643976585204,0.25844158,37933.0,37930.0,0.346797]
[1643976585402,0.25844158,37933.0,37930.0,0.478584]
[1643976586003,0.00050398,37933.0,37930.0,0.478584]
[1643976586551,0.05,37931.0,37930.0,0.478584]
[1643976586752,0.05,37931.0,37930.0,0.346797]
[1643976587553,0.75,37931.0,37930.0,0.346797]
[1643976587751,0.75,37931.0,37925.0,0.00101451]
[1643976587952,0.75,37931.0,37926.0,0.346797]
[1643976588152,0.05,37931.0,37926.0,0.346797]
[1643976588352,0.35268409,37931.0,37926.0,0.346797]
[1643976588852,0.0806726,37927.0,37926.0,0.346797]
[1643976590202,0.05,37930.0,37927.0,0.065905]
[1643976590398,0.05,37930.0,37928.0,0.346797]
[1643976591198,0.07527316,37929.0,37928.0,0.346797]
[1643976591398,0.07527316,37929.0,37928.0,0.344845]
[1643976591599,0.07527316,37929.0,37928.0,0.34292106]
[1643976591799,0.05,37930.0,37928.0,0.34292106]
[1643976596963,0.05,37930.0,37925.0,0.34056831]
[1643976597166,0.14907716,37932.0,37925.0,0.00101449]
[1643976597167,0.5084097,37927.0,37925.0,0.00101449]
[1643976597368,0.04955759,37926.0,37925.0,0.00101449]
[1643976597565,0.04955759,37926.0,37925.0,0.3482729]
[1643976597801,0.04955759,37926.0,37925.0,0.346816]
[1643976599203,0.29830594,37930.0,37925.0,0.34725841]
[1643976599403,0.04955759,37929.0,37925.0,0.346816]
[1643976599601,0.04955759,37926.0,37925.0,0.346816]
[1643976600010,0.04955759,37928.0,37925.0,0.346816]
[1643976600205,0.24400185,37928.0,37925.0,0.346816]
[1643976600501,0.04955759,37926.0,37924.0,0.34783048]
[1643976600703,0.05057185,37932.0,37925.0,0.37831348]
[1643976600903,0.04955759,37929.0,37926.0,0.34725841]
[1643976601102,0.04955759,37929.0,37927.0,0.31538197]
[1643976601302,0.04955759,37929.0,37928.0,0.346816]
[1643976601759,0.05057189,37932.0,37928.0,0.42471778]
[1643976601959,0.04955759,37929.0,37928.0,0.42427537]
[1643976602761,0.0010143,37932.0,37928.0,0.72617994]
[1643976602961,0.0010143,37932.0,37928.0,0.42427537]
[1643976602962,0.04955759,37931.0,37928.0,0.42427537]
[1643976603361,0.0010143,37932.0,37928.0,0.42427537]
[1643976603561,0.04955759,37929.0,37928.0,0.42427537]
[1643976604864,0.04955759,37929.0,37928.0,0.71913113]
[1643976605067,0.1221,37938.0,37928.0,0.73489157]
[1643976605312,0.39637359,37935.0,37934.0,0.00044241]
[1643976605509,0.39637359,37935.0,37931.0,0.00044241]
[1643976605710,0.346816,37934.0,37933.0,0.00044241]
[1643976606107,0.346816,37934.0,37929.0,0.33955382]
[1643976606412,0.31762564,37935.0,37933.0,0.00044241]
[1643976606608,0.66444164,37935.0,37933.0,0.00044241]
[1643976606809,0.66444164,37935.0,37933.0,2.2411767]
[1643976607310,0.66444164,37935.0,37934.0,0.00044241]
[1643976607512,0.66342736,37935.0,37934.0,0.00044241]
[1643976608311,0.31661136,37935.0,37931.0,0.06634141]
[1643976608511,0.04955759,37933.0,37932.0,0.30294844]
[1643976608710,0.04955759,37933.0,37931.0,0.00044241]
[1643976608944,0.26705377,37935.0,37932.0,0.346816]
[1643976608945,0.05057187,37935.0,37932.0,0.346816]
[1643976609147,0.05057187,37935.0,37934.0,0.00044241]
[1643976609549,0.05057187,37935.0,37932.0,0.29974135]
[1643976609746,0.04955759,37935.0,37932.0,0.29974135]
[1643976610148,0.30546847,37935.0,37932.0,0.29974135]
[1643976610351,0.05057187,37935.0,37932.0,0.29974135]
[1643976610549,0.05057187,37935.0,37933.0,0.00044241]
[1643976610752,0.05057187,37935.0,37934.0,0.065893]
[1643976610950,0.04955759,37935.0,37934.0,0.065893]
[1643976611351,0.00101426,37936.0,37934.0,0.065893]
[1643976611551,0.346816,37935.0,37934.0,0.065893]
[1643976611751,0.346816,37935.0,37933.0,0.00044241]
[1643976612353,0.39637359,37935.0,37933.0,0.00044241]
[1643976613007,0.05136702,37936.0,37931.0,0.346816]
[1643976613204,0.05101427,37936.0,37932.0,0.29867983]
[1643976613401,0.05,37933.0,37932.0,0.36457583]
[1643976613602,0.05,37933.0,37932.0,0.71139183]
[1643976613802,0.00101428,37935.0,37932.0,0.71979344]
[1643976614001,0.00101428,37935.0,37932.0,0.065896]
[1643976614401,0.00101428,37935.0,37932.0,0.36571869]
[1643976614604,0.05035275,37936.0,37932.0,0.36571869]
[1643976614805,0.00101428,37935.0,37932.0,0.065896]
[1643976615002,0.00101428,37935.0,37932.0,0.35628299]
[1643976615806,0.05035275,37936.0,37932.0,0.35628299]
[1643976616005,0.05,37934.0,37932.0,0.065896]
[1643976616204,0.05,37934.0,37933.0,0.63767002]
[1643976616447,0.05,37934.0,37933.0,0.29085402]